[Event "Late-Titled-Tuesday-Blitz-May-07-2024"]
[Site "Chess.com"]
[Date "2024.05.07"]
[Round "1"]
[White "ImportedItalianMaple"]
[Black "baki83"]
[Result "0-1"]
[WhiteElo "2526"]
[BlackElo "2921"]
[TimeControl "180+1"]
[EndTime "14:04:43 PDT"]
[Termination "baki83 won by resignation"]

1. e4 {[%clk 0:03:00.8]} 1... c5 {[%clk 0:02:34]} 2. Nf3 {[%clk 0:03:00.3]} 2...
d6 {[%clk 0:02:34]} 3. Bb5+ {[%clk 0:03:00.2]} 3... Bd7 {[%clk 0:02:33.8]} 4.
Bxd7+ {[%clk 0:03:00.4]} 4... Qxd7 {[%clk 0:02:34.7]} 5. O-O {[%clk 0:03:00.4]}
5... Nf6 {[%clk 0:02:34.4]} 6. e5 {[%clk 0:03:00.7]} 6... dxe5 {[%clk
0:02:33.7]} 7. Nxe5 {[%clk 0:03:01.6]} 7... Qc7 {[%clk 0:02:34.1]} 8. d4 {[%clk
0:02:50.1]} 8... cxd4 {[%clk 0:02:20.9]} 9. Qxd4 {[%clk 0:02:51]} 9... Nc6
{[%clk 0:02:16.1]} 10. Nxc6 {[%clk 0:02:49.2]} 10... Qxc6 {[%clk 0:02:17]} 11.
Nc3 {[%clk 0:02:24.3]} 11... e6 {[%clk 0:02:16.1]} 12. Bg5 {[%clk 0:02:13.2]}
12... Be7 {[%clk 0:02:15.3]} 13. Rad1 {[%clk 0:02:10.8]} 13... O-O {[%clk
0:02:13.8]} 14. Rd3 {[%clk 0:01:32]} 14... Rfd8 {[%clk 0:02:10.8]} 15. Qe3
{[%clk 0:01:17.5]} 15... Rxd3 {[%clk 0:02:00.3]} 16. Qxd3 {[%clk 0:01:18.1]}
16... Rd8 {[%clk 0:01:59.8]} 17. Qe2 {[%clk 0:01:18.5]} 17... Qb6 {[%clk
0:01:50.3]} 18. b3 {[%clk 0:01:08.9]} 18... Qb4 {[%clk 0:01:32]} 19. Qf3 {[%clk
0:00:53]} 19... h6 {[%clk 0:01:26.5]} 20. Bxf6 {[%clk 0:00:52.5]} 20... Bxf6
{[%clk 0:01:26.8]} 21. Ne4 {[%clk 0:00:53.1]} 21... Be7 {[%clk 0:01:26.4]} 22.
Rd1 {[%clk 0:00:49.1]} 22... Rxd1+ {[%clk 0:01:25.4]} 23. Qxd1 {[%clk 0:00:50]}
23... Qxe4 {[%clk 0:01:25.4]} 0-1

[Event "Late-Titled-Tuesday-Blitz-May-07-2024"]
[Site "Chess.com"]
[Date "2024.05.07"]
[Round "1"]
[White "Alina_Gumerovna"]
[Black "gshwbedhkhd"]
[Result "0-1"]
[WhiteElo "2179"]
[BlackElo "2594"]
[TimeControl "180+1"]
[EndTime "14:04:44 PDT"]
[Termination "gshwbedhkhd won by resignation"]

1. e4 {[%clk 0:02:57.6]} 1... c5 {[%clk 0:02:56.3]} 2. Nf3 {[%clk 0:02:56.6]}
2... e6 {[%clk 0:02:56]} 3. c4 {[%clk 0:02:55.7]} 3... Nc6 {[%clk 0:02:55.5]} 4.
Nc3 {[%clk 0:02:54.7]} 4... Nd4 {[%clk 0:02:54.5]} 5. g3 {[%clk 0:02:50.7]} 5...
Ne7 {[%clk 0:02:52.6]} 6. Bg2 {[%clk 0:02:49.8]} 6... Nec6 {[%clk 0:02:52]} 7.
O-O {[%clk 0:02:47.1]} 7... g6 {[%clk 0:02:43.9]} 8. Rb1 {[%clk 0:02:25.9]} 8...
Bg7 {[%clk 0:02:42.6]} 9. a3 {[%clk 0:02:25.5]} 9... a5 {[%clk 0:02:38.1]} 10.
d3 {[%clk 0:01:37.1]} 10... O-O {[%clk 0:02:35.6]} 11. Bg5 {[%clk 0:01:32.6]}
11... Nxf3+ {[%clk 0:02:34.1]} 12. Bxf3 {[%clk 0:01:24.3]} 12... Qxg5 {[%clk
0:02:35]} 13. Bg2 {[%clk 0:01:24.8]} 13... Nd4 {[%clk 0:02:30.3]} 14. f4 {[%clk
0:01:21.9]} 14... Qe7 {[%clk 0:02:30]} 15. Kh1 {[%clk 0:01:15.3]} 15... Rb8
{[%clk 0:02:27.3]} 16. Qa4 {[%clk 0:01:01.1]} 16... b6 {[%clk 0:02:26.6]} 17. e5
{[%clk 0:00:55.3]} 17... d6 {[%clk 0:02:24.3]} 18. exd6 {[%clk 0:00:52]} 18...
Qxd6 {[%clk 0:02:25.2]} 19. Ne4 {[%clk 0:00:52.1]} 19... Qe7 {[%clk 0:02:24.1]}
20. h4 {[%clk 0:00:45.8]} 20... Bb7 {[%clk 0:02:23.1]} 21. Kh2 {[%clk
0:00:40.3]} 21... Rfd8 {[%clk 0:02:22.2]} 22. b4 {[%clk 0:00:38.7]} 22... Bc6
{[%clk 0:02:11]} 23. b5 {[%clk 0:00:38.5]} 23... Bb7 {[%clk 0:02:10.2]} 24. Qd1
{[%clk 0:00:37.3]} 24... e5 {[%clk 0:02:07.5]} 25. Qg4 {[%clk 0:00:25.2]} 25...
f5 {[%clk 0:02:06.2]} 0-1

[Event "Late-Titled-Tuesday-Blitz-May-07-2024"]
[Site "Chess.com"]
[Date "2024.05.07"]
[Round "1"]
[White "lupta_robin"]
[Black "Denisenko_Denis"]
[Result "1-0"]
[WhiteElo "2667"]
[BlackElo "2372"]
[TimeControl "180+1"]
[EndTime "14:04:47 PDT"]
[Termination "lupta_robin won by resignation"]

1. b3 {[%clk 0:03:00.9]} 1... d5 {[%clk 0:02:58.5]} 2. Bb2 {[%clk 0:03:00.8]}
2... c6 {[%clk 0:02:58]} 3. Nf3 {[%clk 0:03:01.3]} 3... Bf5 {[%clk 0:02:58.3]}
4. e3 {[%clk 0:03:01.4]} 4... e6 {[%clk 0:02:58.4]} 5. c4 {[%clk 0:03:02]} 5...
Nf6 {[%clk 0:02:58.4]} 6. Nc3 {[%clk 0:03:02.4]} 6... Be7 {[%clk 0:02:58.3]} 7.
d4 {[%clk 0:03:02.7]} 7... h6 {[%clk 0:02:57.8]} 8. Bd3 {[%clk 0:03:02.9]} 8...
Bxd3 {[%clk 0:02:57]} 9. Qxd3 {[%clk 0:03:02.2]} 9... Nbd7 {[%clk 0:02:57.6]}
10. O-O {[%clk 0:03:02.1]} 10... O-O {[%clk 0:02:57.6]} 11. e4 {[%clk
0:03:01.9]} 11... dxe4 {[%clk 0:02:57.4]} 12. Nxe4 {[%clk 0:03:02.8]} 12... Nxe4
{[%clk 0:02:58]} 13. Qxe4 {[%clk 0:03:03.6]} 13... Bf6 {[%clk 0:02:57.9]} 14.
Ne5 {[%clk 0:02:57.9]} 14... Nxe5 {[%clk 0:02:55.2]} 15. dxe5 {[%clk 0:02:58]}
15... Be7 {[%clk 0:02:55.9]} 16. Rfd1 {[%clk 0:02:57.5]} 16... Qc7 {[%clk
0:02:56.3]} 17. h4 {[%clk 0:02:33.1]} 17... Rfd8 {[%clk 0:02:55.5]} 18. h5
{[%clk 0:02:33.6]} 18... Rxd1+ {[%clk 0:02:54.5]} 19. Rxd1 {[%clk 0:02:34.5]}
19... Rd8 {[%clk 0:02:54.4]} 20. Rd3 {[%clk 0:02:32.2]} 20... Rxd3 {[%clk
0:02:53.3]} 21. Qxd3 {[%clk 0:02:33.1]} 21... Qd8 {[%clk 0:02:53.5]} 22. Qc2
{[%clk 0:02:07.5]} 22... f5 {[%clk 0:02:33]} 23. exf6 {[%clk 0:02:03.4]} 23...
Bxf6 {[%clk 0:02:33]} 24. Bc1 {[%clk 0:01:57.4]} 24... Qe8 {[%clk 0:02:26.4]}
25. g4 {[%clk 0:01:53]} 25... Qd7 {[%clk 0:02:25.7]} 26. Be3 {[%clk 0:01:49.6]}
26... b6 {[%clk 0:02:15.3]} 27. Qg6 {[%clk 0:01:43.9]} 27... Kf8 {[%clk
0:02:15]} 28. Bxh6 {[%clk 0:01:36.6]} 28... Qd1+ {[%clk 0:01:59.4]} 29. Kg2
{[%clk 0:01:34.9]} 29... Qe2 {[%clk 0:01:57.1]} 30. Bf4 {[%clk 0:01:24.2]} 30...
Bd4 {[%clk 0:01:44.9]} 31. Bd6+ {[%clk 0:01:19.4]} 31... Kg8 {[%clk 0:01:42.6]}
32. Qe8+ {[%clk 0:01:19.5]} 32... Kh7 {[%clk 0:01:42.6]} 33. Qg6+ {[%clk
0:01:20.4]} 33... Kg8 {[%clk 0:01:42.6]} 34. Bg3 {[%clk 0:01:21.1]} 34... Qxa2
{[%clk 0:01:29.4]} 35. Qxe6+ {[%clk 0:01:18.3]} 35... Kh7 {[%clk 0:01:29.3]} 36.
Qe4+ {[%clk 0:01:18.1]} 1-0

[Event "Late-Titled-Tuesday-Blitz-May-07-2024"]
[Site "Chess.com"]
[Date "2024.05.07"]
[Round "1"]
[White "arenal72"]
[Black "seasidesunset"]
[Result "1-0"]
[WhiteElo "2626"]
[BlackElo "2270"]
[TimeControl "180+1"]
[EndTime "14:04:47 PDT"]
[Termination "arenal72 won by resignation"]

1. Nf3 {[%clk 0:02:59.6]} 1... c5 {[%clk 0:02:54.7]} 2. g3 {[%clk 0:02:58.3]}
2... Nf6 {[%clk 0:02:54]} 3. Bg2 {[%clk 0:02:58.3]} 3... g6 {[%clk 0:02:54.4]}
4. O-O {[%clk 0:02:58.4]} 4... Bg7 {[%clk 0:02:55]} 5. d3 {[%clk 0:02:57.2]}
5... O-O {[%clk 0:02:53.4]} 6. e4 {[%clk 0:02:57.6]} 6... d6 {[%clk 0:02:52.1]}
7. Qe2 {[%clk 0:02:55.1]} 7... e5 {[%clk 0:02:48]} 8. h3 {[%clk 0:02:46.1]} 8...
Nc6 {[%clk 0:02:47.9]} 9. c3 {[%clk 0:02:43.3]} 9... Ne8 {[%clk 0:02:47]} 10. a3
{[%clk 0:02:25.3]} 10... f5 {[%clk 0:02:44.9]} 11. exf5 {[%clk 0:02:25.5]} 11...
gxf5 {[%clk 0:02:45.2]} 12. b4 {[%clk 0:02:23.4]} 12... cxb4 {[%clk 0:02:17.9]}
13. axb4 {[%clk 0:02:21.7]} 13... Nf6 {[%clk 0:02:10.5]} 14. b5 {[%clk
0:01:56.4]} 14... Ne7 {[%clk 0:02:09.9]} 15. Qa2+ {[%clk 0:01:50]} 15... Kh8
{[%clk 0:01:48]} 16. Ba3 {[%clk 0:01:48.3]} 16... Ng6 {[%clk 0:01:39.4]} 17.
Nbd2 {[%clk 0:01:42.7]} 17... Re8 {[%clk 0:00:54.3]} 18. Ng5 {[%clk 0:01:36.7]}
18... Qe7 {[%clk 0:00:45.2]} 19. Bxd6 {[%clk 0:01:28.6]} 1-0

[Event "Late-Titled-Tuesday-Blitz-May-07-2024"]
[Site "Chess.com"]
[Date "2024.05.07"]
[Round "1"]
[White "youngdinousaur"]
[Black "Cipy77"]
[Result "0-1"]
[WhiteElo "2298"]
[BlackElo "2632"]
[TimeControl "180+1"]
[EndTime "14:04:55 PDT"]
[Termination "Cipy77 won by resignation"]

1. d4 {[%clk 0:02:59.1]} 1... e6 {[%clk 0:02:55.9]} 2. Nf3 {[%clk 0:02:58.8]}
2... b6 {[%clk 0:02:55.9]} 3. e4 {[%clk 0:02:58.4]} 3... Bb7 {[%clk 0:02:56.4]}
4. Nc3 {[%clk 0:02:58.9]} 4... c5 {[%clk 0:02:55.1]} 5. d5 {[%clk 0:02:58.5]}
5... exd5 {[%clk 0:02:54.5]} 6. exd5 {[%clk 0:02:59.4]} 6... Nf6 {[%clk
0:02:53.2]} 7. d6 {[%clk 0:02:40.4]} 7... Ne4 {[%clk 0:02:11.1]} 8. Nb5 {[%clk
0:01:41.5]} 8... Na6 {[%clk 0:01:59.8]} 9. Bf4 {[%clk 0:01:39.1]} 9... Qf6
{[%clk 0:01:55.9]} 10. Be5 {[%clk 0:01:34.4]} 10... Qe6 {[%clk 0:01:55.6]} 11.
b3 {[%clk 0:01:25.5]} 11... Ng5 {[%clk 0:01:52.7]} 12. Bc4 {[%clk 0:01:24.2]}
12... Nxf3+ {[%clk 0:01:49.4]} 13. gxf3 {[%clk 0:00:45.4]} 13... Qxe5+ {[%clk
0:01:48.9]} 14. Kf1 {[%clk 0:00:45.2]} 14... g6 {[%clk 0:01:40.2]} 15. Qd2
{[%clk 0:00:42.7]} 15... Qxa1+ {[%clk 0:01:39.2]} 16. Kg2 {[%clk 0:00:41.9]}
16... Bxf3+ {[%clk 0:01:35.8]} 17. Kxf3 {[%clk 0:00:40]} 17... Qxh1+ {[%clk
0:01:35.5]} 18. Kg3 {[%clk 0:00:40.9]} 18... Qg1+ {[%clk 0:01:33.8]} 19. Kf3
{[%clk 0:00:40.3]} 19... h5 {[%clk 0:01:31.9]} 20. Qe3+ {[%clk 0:00:39]} 20...
Kd8 {[%clk 0:01:31.5]} 21. Qe4 {[%clk 0:00:38.9]} 21... Qg4+ {[%clk 0:01:30.5]}
22. Qxg4 {[%clk 0:00:38.6]} 22... hxg4+ {[%clk 0:01:31.4]} 0-1

[Event "Late-Titled-Tuesday-Blitz-May-07-2024"]
[Site "Chess.com"]
[Date "2024.05.07"]
[Round "1"]
[White "CarrotsandPizza"]
[Black "shirovin"]
[Result "1-0"]
[WhiteElo "2579"]
[BlackElo "2070"]
[TimeControl "180+1"]
[EndTime "14:04:57 PDT"]
[Termination "CarrotsandPizza won by checkmate"]

1. e4 {[%clk 0:03:00.2]} 1... Nf6 {[%clk 0:02:58.7]} 2. e5 {[%clk 0:02:59.8]}
2... Nd5 {[%clk 0:02:59.1]} 3. d4 {[%clk 0:03:00.3]} 3... d6 {[%clk 0:02:58.7]}
4. f4 {[%clk 0:03:00.8]} 4... dxe5 {[%clk 0:02:48.6]} 5. fxe5 {[%clk 0:03:01.7]}
5... Bf5 {[%clk 0:02:46.8]} 6. Nf3 {[%clk 0:03:02.2]} 6... e6 {[%clk 0:02:41.6]}
7. Bd3 {[%clk 0:03:01.2]} 7... Bxd3 {[%clk 0:02:35.8]} 8. Qxd3 {[%clk
0:03:02.1]} 8... Nc6 {[%clk 0:02:35.1]} 9. c3 {[%clk 0:03:01.6]} 9... Be7 {[%clk
0:02:27]} 10. O-O {[%clk 0:03:02]} 10... O-O {[%clk 0:02:26]} 11. Nbd2 {[%clk
0:03:02.4]} 11... Nf4 {[%clk 0:02:16.5]} 12. Qe3 {[%clk 0:02:56.1]} 12... Ng6
{[%clk 0:02:14.9]} 13. Ne4 {[%clk 0:02:55.8]} 13... Na5 {[%clk 0:02:11.7]} 14.
Qe2 {[%clk 0:02:50.1]} 14... b6 {[%clk 0:02:00.7]} 15. Bd2 {[%clk 0:02:42.7]}
15... c5 {[%clk 0:01:58.5]} 16. h4 {[%clk 0:02:37.1]} 16... cxd4 {[%clk
0:01:32.1]} 17. h5 {[%clk 0:02:36.4]} 17... Nh4 {[%clk 0:01:30.3]} 18. Nxh4
{[%clk 0:02:28]} 18... Bxh4 {[%clk 0:01:28.9]} 19. Qg4 {[%clk 0:02:18.7]} 19...
Nc4 {[%clk 0:01:18.5]} 20. Bh6 {[%clk 0:02:17.2]} 20... g6 {[%clk 0:00:55.7]}
21. Bxf8 {[%clk 0:02:17.2]} 21... Ne3 {[%clk 0:00:44.4]} 22. Qf4 {[%clk
0:02:11.2]} 22... Nxf1 {[%clk 0:00:41.4]} 23. Rxf1 {[%clk 0:02:10.9]} 23... f5
{[%clk 0:00:26.8]} 24. exf6 {[%clk 0:02:04.9]} 24... Qxf8 {[%clk 0:00:19.3]} 25.
f7+ {[%clk 0:02:02.3]} 25... Kh8 {[%clk 0:00:16.6]} 26. Qe5+ {[%clk 0:01:58.8]}
26... Qg7 {[%clk 0:00:14.1]} 27. f8=Q+ {[%clk 0:01:59.1]} 27... Rxf8 {[%clk
0:00:12.9]} 28. Rxf8# {[%clk 0:01:58.8]} 1-0

[Event "Late-Titled-Tuesday-Blitz-May-07-2024"]
[Site "Chess.com"]
[Date "2024.05.07"]
[Round "1"]
[White "PNEPaul"]
[Black "DucksParadise"]
[Result "0-1"]
[WhiteElo "1948"]
[BlackElo "2565"]
[TimeControl "180+1"]
[EndTime "14:05:00 PDT"]
[Termination "DucksParadise won by resignation"]

1. e4 {[%clk 0:03:00.9]} 1... d5 {[%clk 0:02:58]} 2. exd5 {[%clk 0:02:58.5]}
2... Qxd5 {[%clk 0:02:55.8]} 3. d4 {[%clk 0:02:58.4]} 3... e5 {[%clk 0:02:53.2]}
4. Nf3 {[%clk 0:02:57.4]} 4... exd4 {[%clk 0:02:48.4]} 5. Qxd4 {[%clk 0:02:56]}
5... Nf6 {[%clk 0:02:40.2]} 6. Bg5 {[%clk 0:02:52.2]} 6... Nc6 {[%clk 0:02:33]}
7. Qxd5 {[%clk 0:02:37.6]} 7... Nxd5 {[%clk 0:02:33.9]} 8. Be2 {[%clk
0:02:30.9]} 8... Bf5 {[%clk 0:02:21.9]} 9. c3 {[%clk 0:02:26.9]} 9... f6 {[%clk
0:02:19.5]} 10. Bd2 {[%clk 0:02:23.9]} 10... O-O-O {[%clk 0:02:17.5]} 11. O-O
{[%clk 0:02:22.4]} 11... Bc5 {[%clk 0:02:15.6]} 12. Bb5 {[%clk 0:02:17.6]} 12...
Rhe8 {[%clk 0:02:10]} 13. Bxc6 {[%clk 0:02:15.9]} 13... bxc6 {[%clk 0:02:10.9]}
14. b4 {[%clk 0:02:15.1]} 14... Bf8 {[%clk 0:02:09.3]} 15. Nd4 {[%clk
0:02:09.3]} 15... Bd7 {[%clk 0:01:53]} 16. a4 {[%clk 0:02:02.3]} 16... c5 {[%clk
0:01:50.7]} 17. bxc5 {[%clk 0:01:55.9]} 17... Bxc5 {[%clk 0:01:51.6]} 18. Na3
{[%clk 0:01:38.2]} 18... Bxa4 {[%clk 0:01:38.3]} 19. Nab5 {[%clk 0:01:38.2]}
19... Bxb5 {[%clk 0:01:36.2]} 20. Nxb5 {[%clk 0:01:37]} 20... c6 {[%clk
0:01:22.1]} 21. Nxa7+ {[%clk 0:01:21.7]} 21... Kb7 {[%clk 0:01:21.7]} 22. Rfb1+
{[%clk 0:01:21.5]} 22... Nb6 {[%clk 0:01:22.1]} 23. c4 {[%clk 0:00:47.5]} 23...
Rxd2 {[%clk 0:01:18.7]} 0-1

[Event "Late-Titled-Tuesday-Blitz-May-07-2024"]
[Site "Chess.com"]
[Date "2024.05.07"]
[Round "1"]
[White "maurovargas01"]
[Black "BabageldiAnnaberdiyev"]
[Result "0-1"]
[WhiteElo "1971"]
[BlackElo "2574"]
[TimeControl "180+1"]
[EndTime "14:05:01 PDT"]
[Termination "BabageldiAnnaberdiyev won on time"]

1. e4 {[%clk 0:02:59.9]} 1... e6 {[%clk 0:03:00.9]} 2. f4 {[%clk 0:02:57.7]}
2... d5 {[%clk 0:03:00.8]} 3. Nc3 {[%clk 0:02:58.2]} 3... Nf6 {[%clk 0:02:57]}
4. e5 {[%clk 0:02:56.5]} 4... Nfd7 {[%clk 0:02:57.6]} 5. Nf3 {[%clk 0:02:54.3]}
5... c5 {[%clk 0:02:56.4]} 6. d3 {[%clk 0:02:53.2]} 6... Nc6 {[%clk 0:02:56.2]}
7. g3 {[%clk 0:01:43]} 7... g6 {[%clk 0:02:55.1]} 8. Bg2 {[%clk 0:01:34.4]} 8...
h5 {[%clk 0:02:55.5]} 9. h3 {[%clk 0:01:32.8]} 9... Be7 {[%clk 0:02:55.8]} 10.
O-O {[%clk 0:01:27.1]} 10... a6 {[%clk 0:02:55.9]} 11. Ne2 {[%clk 0:00:59]}
11... b5 {[%clk 0:02:55.3]} 12. c3 {[%clk 0:00:49.9]} 12... Qb6 {[%clk
0:02:55.6]} 13. Kh2 {[%clk 0:00:49.1]} 13... Bb7 {[%clk 0:02:56]} 14. Qe1 {[%clk
0:00:46.1]} 14... a5 {[%clk 0:02:55.2]} 15. b3 {[%clk 0:00:41.8]} 15... a4
{[%clk 0:02:54]} 16. Rb1 {[%clk 0:00:34.3]} 16... axb3 {[%clk 0:02:52.3]} 17.
axb3 {[%clk 0:00:33.8]} 17... b4 {[%clk 0:02:50.7]} 18. c4 {[%clk 0:00:30.7]}
18... d4 {[%clk 0:02:48.6]} 19. Nd2 {[%clk 0:00:26.7]} 19... Ra2 {[%clk
0:02:47.4]} 20. Ne4 {[%clk 0:00:25.8]} 20... Na5 {[%clk 0:02:45]} 21. Kg1 {[%clk
0:00:16.9]} 21... Kf8 {[%clk 0:02:39.2]} 22. Bd2 {[%clk 0:00:12.6]} 22... Kg7
{[%clk 0:02:37.7]} 23. Qc1 {[%clk 0:00:07.3]} 23... Bc6 {[%clk 0:02:16.3]} 24.
Qe1 {[%clk 0:00:01.7]} 24... Ra3 {[%clk 0:02:12.7]} 25. Bc1 {[%clk 0:00:01]}
25... Rxb3 {[%clk 0:02:11]} 0-1

[Event "Late-Titled-Tuesday-Blitz-May-07-2024"]
[Site "Chess.com"]
[Date "2024.05.07"]
[Round "1"]
[White "MagnusCarlsen"]
[Black "Noki102"]
[Result "1-0"]
[WhiteElo "3207"]
[BlackElo "2560"]
[TimeControl "180+1"]
[EndTime "14:05:04 PDT"]
[Termination "MagnusCarlsen won by resignation"]

1. e4 {[%clk 0:02:51.7]} 1... e5 {[%clk 0:02:59.8]} 2. f4 {[%clk 0:02:41.6]}
2... exf4 {[%clk 0:02:59.1]} 3. Bc4 {[%clk 0:02:39.2]} 3... Qh4+ {[%clk
0:02:58.2]} 4. Kf1 {[%clk 0:02:36.1]} 4... c6 {[%clk 0:02:52.5]} 5. Nc3 {[%clk
0:02:33.9]} 5... Qd8 {[%clk 0:02:49.7]} 6. d4 {[%clk 0:02:33.2]} 6... Nf6 {[%clk
0:02:47.9]} 7. e5 {[%clk 0:02:28.6]} 7... d5 {[%clk 0:02:44.3]} 8. Bd3 {[%clk
0:02:28.2]} 8... Ne4 {[%clk 0:02:37.7]} 9. Nxe4 {[%clk 0:02:27.1]} 9... dxe4
{[%clk 0:02:37.5]} 10. Bxe4 {[%clk 0:02:28]} 10... g5 {[%clk 0:02:03.6]} 11. h4
{[%clk 0:02:26.1]} 11... Bg7 {[%clk 0:02:02.7]} 12. hxg5 {[%clk 0:02:25.2]}
12... Bxe5 {[%clk 0:02:02.2]} 13. Nf3 {[%clk 0:02:24.3]} 13... Bd6 {[%clk
0:01:59.8]} 14. Qe2 {[%clk 0:02:17.7]} 14... Qe7 {[%clk 0:01:56.8]} 15. Rh4
{[%clk 0:02:13.4]} 15... Be6 {[%clk 0:01:51.4]} 16. c4 {[%clk 0:02:07.6]} 16...
Bxc4 {[%clk 0:01:32]} 17. Qxc4 {[%clk 0:02:08.5]} 17... Qxe4 {[%clk 0:01:31.5]}
18. Bxf4 {[%clk 0:02:08.8]} 18... b5 {[%clk 0:01:00.5]} 19. Qb3 {[%clk 0:02:02]}
19... Qg6 {[%clk 0:00:48.3]} 20. Re1+ {[%clk 0:02:00]} 20... Kf8 {[%clk
0:00:36.9]} 21. Bxd6+ {[%clk 0:01:54.7]} 21... Qxd6 {[%clk 0:00:36.2]} 22. Ne5
{[%clk 0:01:54.5]} 22... Qd5 {[%clk 0:00:32.2]} 23. Qxd5 {[%clk 0:01:52.9]}
23... cxd5 {[%clk 0:00:31.8]} 24. g6 {[%clk 0:01:49.8]} 24... f6 {[%clk
0:00:21.2]} 25. Nf7 {[%clk 0:01:49]} 1-0

[Event "Late-Titled-Tuesday-Blitz-May-07-2024"]
[Site "Chess.com"]
[Date "2024.05.07"]
[Round "1"]
[White "maracayo"]
[Black "Hasangatin_Ramil"]
[Result "0-1"]
[WhiteElo "2373"]
[BlackElo "2668"]
[TimeControl "180+1"]
[EndTime "14:05:21 PDT"]
[Termination "Hasangatin_Ramil won by resignation"]

1. e4 {[%clk 0:02:58.5]} 1... d5 {[%clk 0:02:57.4]} 2. d3 {[%clk 0:02:57.6]}
2... Nc6 {[%clk 0:02:55.7]} 3. Nf3 {[%clk 0:02:56.6]} 3... Nf6 {[%clk
0:02:55.6]} 4. Nbd2 {[%clk 0:02:55.4]} 4... e5 {[%clk 0:02:55.2]} 5. Be2 {[%clk
0:02:54.6]} 5... g6 {[%clk 0:02:55.4]} 6. O-O {[%clk 0:02:53.3]} 6... Bg7 {[%clk
0:02:55.9]} 7. c3 {[%clk 0:02:53.7]} 7... a5 {[%clk 0:02:54.4]} 8. h3 {[%clk
0:02:53.6]} 8... O-O {[%clk 0:02:54.4]} 9. Qc2 {[%clk 0:02:52.9]} 9... Re8
{[%clk 0:02:54.7]} 10. Re1 {[%clk 0:02:52.4]} 10... h6 {[%clk 0:02:53.6]} 11. a4
{[%clk 0:02:46.4]} 11... Be6 {[%clk 0:02:53.3]} 12. exd5 {[%clk 0:02:44.9]}
12... Bxd5 {[%clk 0:02:51.1]} 13. Ne4 {[%clk 0:02:44.2]} 13... b6 {[%clk
0:02:44.5]} 14. Bf1 {[%clk 0:02:43]} 14... Kh7 {[%clk 0:02:42.9]} 15. Bd2 {[%clk
0:02:39.4]} 15... Qd7 {[%clk 0:02:41.9]} 16. Rad1 {[%clk 0:02:37.3]} 16... Rad8
{[%clk 0:02:41.1]} 17. Bc1 {[%clk 0:02:36.5]} 17... Nh5 {[%clk 0:02:37.2]} 18.
b3 {[%clk 0:01:54.6]} 18... f5 {[%clk 0:02:37]} 19. Ned2 {[%clk 0:01:49.5]}
19... Qf7 {[%clk 0:02:37]} 20. Nh2 {[%clk 0:01:07.1]} 20... Nf4 {[%clk
0:02:34.8]} 21. Nc4 {[%clk 0:01:06.2]} 21... g5 {[%clk 0:02:31.4]} 22. d4 {[%clk
0:00:32]} 22... e4 {[%clk 0:02:30.4]} 23. g3 {[%clk 0:00:24.2]} 23... Ng6 {[%clk
0:02:29.4]} 24. Bg2 {[%clk 0:00:22.6]} 24... Kh8 {[%clk 0:02:25.1]} 25. Nf1
{[%clk 0:00:18.5]} 25... Be6 {[%clk 0:02:15.6]} 26. Nfe3 {[%clk 0:00:14.5]}
26... f4 {[%clk 0:02:15]} 27. Bxe4 {[%clk 0:00:03.2]} 27... fxe3 {[%clk
0:02:11.4]} 28. Bxc6 {[%clk 0:00:03.1]} 28... Rf8 {[%clk 0:01:56.3]} 29. Ne5
{[%clk 0:00:01.4]} 29... Bxe5 {[%clk 0:01:53.6]} 0-1

[Event "Late-Titled-Tuesday-Blitz-May-07-2024"]
[Site "Chess.com"]
[Date "2024.05.07"]
[Round "1"]
[White "xakevicius91"]
[Black "BilodeauA"]
[Result "0-1"]
[WhiteElo "2524"]
[BlackElo "2907"]
[TimeControl "180+1"]
[EndTime "14:05:27 PDT"]
[Termination "BilodeauA won by resignation"]

1. e4 {[%clk 0:02:56.7]} 1... c5 {[%clk 0:02:59.5]} 2. Nf3 {[%clk 0:02:56.5]}
2... Nc6 {[%clk 0:02:58.8]} 3. Bc4 {[%clk 0:02:56.6]} 3... e6 {[%clk 0:02:58.6]}
4. O-O {[%clk 0:02:56.8]} 4... a6 {[%clk 0:02:58.3]} 5. d4 {[%clk 0:02:55.6]}
5... b5 {[%clk 0:02:56.3]} 6. d5 {[%clk 0:02:26.7]} 6... bxc4 {[%clk 0:02:56.5]}
7. dxc6 {[%clk 0:02:26.9]} 7... d6 {[%clk 0:02:56.9]} 8. Qe2 {[%clk 0:02:22]}
8... Qc7 {[%clk 0:02:56.1]} 9. Nbd2 {[%clk 0:02:21.5]} 9... Qxc6 {[%clk
0:02:56.3]} 10. Nxc4 {[%clk 0:02:22.1]} 10... Be7 {[%clk 0:02:49.2]} 11. Bf4
{[%clk 0:02:19.5]} 11... e5 {[%clk 0:02:48.6]} 12. Bg3 {[%clk 0:02:13.4]} 12...
Be6 {[%clk 0:02:48.1]} 13. Nfd2 {[%clk 0:02:09.7]} 13... Nf6 {[%clk 0:02:46.9]}
14. f3 {[%clk 0:02:09.8]} 14... O-O {[%clk 0:02:46.1]} 15. Ne3 {[%clk
0:02:06.9]} 15... a5 {[%clk 0:02:37.7]} 16. Bh4 {[%clk 0:01:59.5]} 16... a4
{[%clk 0:02:36.1]} 17. Bxf6 {[%clk 0:01:59.1]} 17... Bxf6 {[%clk 0:02:37]} 18.
b3 {[%clk 0:01:58]} 18... Bg5 {[%clk 0:02:35.6]} 19. c4 {[%clk 0:01:53.7]} 19...
Ra7 {[%clk 0:02:30.5]} 20. Nd5 {[%clk 0:01:52.6]} 20... Rfa8 {[%clk 0:02:28.9]}
21. Rad1 {[%clk 0:01:02.4]} 21... axb3 {[%clk 0:02:26.4]} 22. axb3 {[%clk
0:01:02.9]} 22... h6 {[%clk 0:02:21.4]} 23. g3 {[%clk 0:00:57.1]} 23... Ra2
{[%clk 0:02:13.9]} 24. f4 {[%clk 0:00:56.9]} 24... exf4 {[%clk 0:02:13.6]} 25.
gxf4 {[%clk 0:00:57.8]} 25... Bd8 {[%clk 0:02:11.9]} 26. Qe3 {[%clk 0:00:39.7]}
26... Bxd5 {[%clk 0:02:11.2]} 27. exd5 {[%clk 0:00:35.9]} 27... Qd7 {[%clk
0:02:11.3]} 28. Ne4 {[%clk 0:00:34.9]} 28... f5 {[%clk 0:02:10.6]} 29. Ng3
{[%clk 0:00:34.2]} 29... Bf6 {[%clk 0:02:10.2]} 30. Kh1 {[%clk 0:00:26.8]} 30...
Re8 {[%clk 0:02:08.8]} 31. Qf3 {[%clk 0:00:26.2]} 31... g6 {[%clk 0:02:05]} 32.
Rfe1 {[%clk 0:00:26.3]} 32... Bd4 {[%clk 0:01:55.5]} 33. h4 {[%clk 0:00:20.3]}
33... Qd8 {[%clk 0:01:52.3]} 34. Rxe8+ {[%clk 0:00:18.5]} 34... Qxe8 {[%clk
0:01:53.2]} 35. h5 {[%clk 0:00:18.4]} 35... Qe7 {[%clk 0:01:53.2]} 36. Ne2
{[%clk 0:00:13.5]} 36... Rxe2 {[%clk 0:01:52.3]} 0-1